bitfinex-derivatives/quotes_ETHF0:USTF0_20240905
["timestamp","ask_amount","ask_price","bid_price","bid_amount"]
[1725524600914,0.381,2411.1,2411.0,0.41478]
[1725524601113,0.00621311,2411.3,2411.2,0.41475]
[1725524601306,0.00621311,2411.3,2411.1,1.17746]
[1725524601615,0.38721311,2411.3,2411.1,1.17746]
[1725524602117,0.38721311,2411.3,2411.1,0.7627]
[1725524602317,1.2,2411.2,2411.1,0.7627]
[1725524602507,1.2,2411.2,2411.1,0.3898]
[1725524602913,1.61476,2411.2,2410.8,3.62262]
[1725524603118,1.2,2411.0,2410.9,0.55946566]
[1725524603320,1.2,2411.0,2410.8,44.0078]
[1725524603814,1.2,2410.9,2410.8,3.2078]
[1725524604017,0.41482,2410.8,2410.5,3.2078]
[1725524604213,1.2,2410.6,2410.5,3.2078]
[1725524604507,1.2,2410.6,2410.5,3.7673194]
[1725524605514,1.2,2410.6,2410.5,3.2078]
[1725524609327,1.61485,2410.6,2410.5,3.2078]
[1725524610524,1.2,2410.6,2410.5,3.2078]
[1725524610922,1.61485,2410.6,2410.5,3.2078]
[1725524611123,1.2,2410.6,2410.2,0.3831]
[1725524611324,1.61489,2410.4,2410.2,0.3831]
[1725524611628,0.3695,2410.3,2410.2,0.3831]
[1725524612032,0.3695,2410.3,2410.2,0.9426851]
[1725524612727,1.5695,2410.3,2410.1,3.21401311]
[1725524612923,0.3672,2410.2,2410.1,3.21401311]
[1725524613231,0.3672,2410.2,2410.1,3.77360543]
[1725524613428,0.3672,2410.2,2410.1,4.18854543]
[1725524613633,0.3672,2410.2,2410.1,3.60661311]
[1725524613926,0.3672,2410.2,2410.1,4.16620618]
[1725524615430,0.78212,2410.2,2410.1,3.77360618]
[1725524615734,0.78212,2410.2,2410.1,3.21401311]
[1725524615933,0.3672,2410.2,2410.1,3.21401311]
[1725524616137,0.78212,2410.2,2410.1,3.21401311]
[1725524616627,0.3672,2410.2,2410.1,3.21401311]
[1725524617529,1.98212,2410.2,2410.1,3.21401311]
[1725524617735,1.5672,2410.2,2410.1,3.21401311]
[1725524619236,1.5672,2410.2,2410.1,3.62895311]
[1725524619431,0.3672,2410.2,2410.1,3.62895311]
[1725524620834,0.41489,2410.4,2410.2,0.41492]
[1725524621030,1.5652,2410.5,2410.4,0.41488]
[1725524621834,1.98007,2410.5,2410.4,0.41488]
[1725524622047,1.5652,2410.5,2410.4,0.41488]
[1725524624152,1.5652,2410.5,2410.3,0.3859]
[1725524624346,1.5652,2410.5,2410.4,0.41488]
[1725524627758,1.2,2410.5,2410.4,0.41488]
[1725524630048,1.2,2410.5,2410.3,3.5937]
[1725524630457,1.2,2410.5,2410.3,4.00859]
[1725524632053,1.2,2410.5,2410.4,0.41488]
[1725524633362,1.2,2410.5,2410.3,4.00859]
[1725524634149,1.2,2410.5,2410.3,3.2078]
[1725524634564,0.3846,2410.4,2410.2,0.0298]
[1725524634765,0.3846,2410.4,2410.2,0.44471]
[1725524635061,0.7533,2410.3,2410.2,0.44471]
[1725524637251,0.7533,2410.3,2410.2,3.65251]
[1725524638153,0.3933,2410.3,2410.2,3.65251]
[1725524638464,1.61488,2410.5,2410.3,0.4149]
[1725524638761,1.61488,2410.5,2410.3,0.7711]
[1725524639064,0.41488,2410.4,2410.3,0.7711]
[1725524639364,1.1257,2410.6,2410.5,0.41487]
[1725524639568,0.7442,2410.6,2410.5,0.41487]
[1725524640657,3.2078,2411.2,2410.9,0.4148]
[1725524640858,1.61477,2411.1,2410.9,0.4148]
[1725524641361,0.41477,2411.1,2410.9,0.4148]
[1725524641667,0.41478,2411.0,2410.8,3.6226]
[1725524642056,0.373,2410.9,2410.8,3.6226]
[1725524643659,0.373,2410.9,2410.8,0.4148]
[1725524643852,0.373,2410.9,2410.8,3.6226]
[1725524645757,1.573,2410.9,2410.8,3.6226]
[1725524651262,1.573,2410.9,2410.8,3.2078]
[1725524651562,0.373,2410.9,2410.8,3.62262]
[1725524654062,0.00621311,2411.3,2410.8,13.3558]
[1725524654269,0.00621311,2411.3,2411.2,0.41475]
[1725524654663,0.00621311,2411.3,2411.2,1.17285]
[1725524656570,0.00621311,2411.3,2411.2,0.80185]
[1725524656868,0.39231311,2411.3,2411.2,0.80185]
[1725524660175,0.00621311,2411.3,2411.2,0.80185]
[1725524662479,0.00621311,2411.3,2411.2,4.94905]
[1725524662777,4.24434,2412.0,2411.2,4.94905]
[1725524662778,0.41457,2412.3,2411.7,1.03664]
[1725524663073,0.7506,2412.6,2412.5,0.41452]
[1725524663474,1.16511,2412.6,2412.5,0.41452]
[1725524663680,1.16511,2412.6,2412.4,0.41453]
[1725524664073,0.7506,2412.6,2412.4,0.41453]
[1725524664278,0.7506,2412.6,2412.3,0.00621311]
[1725524664279,1.9506,2412.6,2412.3,0.00621311]
[1725524664472,0.41453,2412.5,2412.3,0.42076311]
[1725524665168,2.36511,2412.6,2412.3,0.42076311]
[1725524665470,0.41452,2412.5,2412.3,0.42076311]
[1725524665669,2.36512,2412.6,2412.3,0.42076311]
[1725524666170,1.16512,2412.6,2412.3,0.42076311]
[1725524667075,0.7506,2412.6,2412.3,0.42076311]
[1725524667377,1.16511,2412.6,2412.3,0.42076311]
[1725524672278,0.375,2412.7,2412.6,0.41451]
[1725524672871,0.375,2412.7,2412.4,0.7406]
[1725524673173,0.375,2412.7,2412.3,0.00621311]
[1725524673378,0.7895,2412.7,2412.4,0.41453]
[1725524673579,0.375,2412.7,2412.5,0.41452]
[1725524673770,0.78949,2412.7,2412.5,0.41452]
[1725524673975,0.7895,2412.7,2412.5,3.2078]
[1725524674173,0.41451,2412.6,2412.5,3.2078]
[1725524675588,0.7895,2412.7,2412.5,3.2078]
[1725524676074,0.41451,2412.6,2412.5,3.2078]
[1725524676277,0.41453,2412.5,2412.3,0.42075311]
[1725524676479,0.3872,2412.4,2412.3,0.42075311]
[1725524677987,0.80174,2412.4,2412.3,0.00621311]
[1725524678377,4.94734,2412.4,2412.3,0.00621311]
[1725524678588,5.9837,2412.4,2412.3,0.00621311]
[1725524678898,11.9837,2412.4,2412.3,0.00621311]
[1725524679886,14.8537,2412.4,2412.3,0.00621311]
[1725524680891,0.80174,2412.4,2412.3,0.00621311]
[1725524681086,4.94734,2412.4,2412.3,0.00621311]
[1725524681777,0.80174,2412.4,2412.3,0.00621311]
[1725524682184,3.67174,2412.4,2412.3,0.00621311]
[1725524682586,0.41453,2412.5,2412.3,0.00621311]
[1725524682787,0.41451,2412.6,2412.3,0.42076311]
[1725524683088,0.41452,2412.6,2412.3,0.42076311]
[1725524683397,0.41451,2412.6,2412.4,0.41453]
[1725524683597,0.41451,2412.6,2412.3,0.42076311]
[1725524684789,0.41451,2412.6,2412.4,0.41454]
[1725524685187,1.17699,2412.7,2412.5,0.41452]
[1725524685396,1.17699,2412.7,2412.4,0.41453]
[1725524686484,0.41452,2412.6,2412.4,0.41454]
[1725524686690,0.3949,2412.5,2412.3,0.42076311]
[1725524686891,0.3949,2412.5,2412.4,0.41454]
[1725524687590,0.3949,2412.5,2412.3,0.42076311]
[1725524687989,0.3949,2412.5,2412.3,0.00621311]
[1725524688195,0.41454,2412.4,2412.3,0.00621311]
[1725524691293,5.5965,2412.4,2412.3,0.00621311]
[1725524691500,0.41461,2412.0,2411.8,0.41464]
[1725524691797,0.4146,2412.1,2411.8,0.41464]
[1725524691999,0.4146,2412.1,2411.9,0.41463]
[1725524692410,0.3934,2412.3,2412.2,0.41458]
[1725524692897,0.3934,2412.3,2412.1,3.62238]
[1725524693091,0.3934,2412.3,2412.2,0.41458]
[1725524695299,0.3934,2412.3,2412.1,44.42238]
[1725524695505,0.3934,2412.3,2412.1,3.62238]
[1725524696102,0.80796,2412.3,2412.1,3.62238]
[1725524696291,0.80796,2412.3,2412.1,0.41458]
[1725524697698,0.3934,2412.3,2412.1,0.41458]
[1725524698006,0.80796,2412.3,2412.1,0.41458]
[1725524698209,0.3934,2412.3,2412.1,0.41458]
[1725524698507,0.80796,2412.3,2412.0,1.5521]
[1725524700193,0.80796,2412.3,2412.0,1.1642]
[1725524700902,0.3934,2412.3,2412.0,1.9396]
[1725524701208,0.3934,2412.3,2412.0,2.35421]
[1725524701402,0.3934,2412.3,2412.0,1.9396]
[1725524701701,0.3934,2412.3,2412.0,0.3731]
[1725524701907,0.3934,2412.3,2411.8,41.99621311]
[1725524701908,1.19,2412.1,2411.8,3.21401311]
[1725524702204,0.3942,2412.0,2411.8,3.62865311]
[1725524702402,0.7513,2412.0,2411.8,3.62865311]
[1725524703108,0.7513,2412.0,2411.9,0.41463]
[1725524703410,0.7513,2412.0,2411.9,0.78223]
[1725524703411,0.3942,2412.0,2411.9,0.78223]
[1725524703613,0.77167,2412.3,2411.9,0.78223]
[1725524703614,0.77167,2412.3,2412.0,0.41461]
[1725524703804,1.13727,2412.3,2412.0,0.79391]
[1725524704506,0.3656,2412.3,2412.1,0.41458]
[1725524704701,0.3656,2412.3,2412.0,0.7939]
[1725524705002,0.3656,2412.3,2412.1,0.41459]
[1725524705606,0.78016,2412.3,2412.0,0.7939]
[1725524705909,0.3656,2412.3,2412.0,0.7939]
[1725524706413,0.78016,2412.3,2412.0,0.7939]
[1725524706804,0.78016,2412.3,2412.0,0.3793]
[1725524707001,4.111,2412.5,2412.2,1.60457]
[1725524707200,0.41451,2412.6,2412.3,0.3798]
[1725524707405,2.3423,2412.7,2412.3,0.3798]
[1725524708404,0.3797,2412.6,2412.3,0.3798]
[1725524708604,1.5697,2412.6,2412.3,0.3798]
[1725524710210,1.5697,2412.6,2412.3,0.79436]
[1725524711814,1.19,2412.5,2412.3,0.3798]
[1725524712015,1.19,2412.5,2412.0,0.7955]
[1725524712208,1.60453,2412.5,2412.0,0.7955]
[1725524712414,0.41455,2412.4,2412.0,0.79551]
[1725524712617,0.7547,2412.3,2412.0,0.79551]
[1725524712817,1.19,2412.2,2411.8,3.21401311]
[1725524713012,1.19,2412.2,2411.8,0.80165311]
[1725524713013,1.60459,2412.2,2411.8,0.80165311]
[1725524713210,1.60459,2412.2,2411.8,0.38701311]
[1725524713512,1.60463,2411.9,2411.8,0.00621311]
[1725524713912,13.43103,2411.9,2411.8,0.00621311]
[1725524714811,13.82473,2411.9,2411.8,0.00621311]
[1725524716211,20.95057034,2411.9,2410.8,3.5922]
[1725524716421,0.41476,2411.2,2410.8,0.3844]
[1725524716724,0.41476,2411.2,2410.6,0.79334]
[1725524716725,0.369,2411.1,2410.6,0.79334]
[1725524716910,0.369,2411.1,2410.6,1.17774]
[1725524717105,0.369,2411.1,2410.6,1.18395311]
[1725524717321,0.37521311,2411.1,2410.7,0.41482]
[1725524717516,0.41479,2411.0,2410.6,0.00621311]
[1725524717723,2.87,2410.9,2410.6,0.00621311]
[1725524718013,0.41482,2410.8,2410.6,0.00621311]
[1725524718611,3.28483,2410.7,2410.6,0.00621311]
[1725524719030,7.43283,2410.7,2410.6,0.00621311]
[1725524719221,13.43283,2410.7,2410.6,0.00621311]
[1725524719525,14.19093,2410.7,2410.6,0.00621311]
[1725524719716,0.4149,2410.4,2410.0,3.2078]
[1725524719910,0.4149,2410.4,2409.9,0.7664]
[1725524719911,0.41491,2410.3,2409.9,0.7664]
[1725524720516,0.41491,2410.3,2410.0,3.2078]
[1725524721319,3.2078,2410.5,2410.0,3.2078]
[1725524721920,3.62268,2410.5,2410.0,3.2078]
[1725524722121,3.62268,2410.5,2410.0,3.62275]
[1725524722313,5.90619,2410.7,2410.0,3.62275]
[1725524722314,4.111,2410.7,2410.2,2.87]
[1725524722522,4.111,2410.7,2410.5,0.41486]
[1725524722722,0.3582,2410.9,2410.5,0.41486]
[1725524722926,0.3582,2410.9,2410.6,40.8]
[1725524723230,0.3582,2410.9,2410.5,0.41486]
[1725524723522,0.3582,2410.9,2410.5,41.21485]
[1725524724419,0.3582,2410.9,2410.5,0.41485]
[1725524724927,0.3582,2410.9,2410.5,40.8]
[1725524724928,3.2282,2410.9,2410.5,40.8]
[1725524725120,3.64301,2410.9,2410.5,40.8]
[1725524725323,3.64301,2410.9,2410.5,41.21487]
[1725524725820,3.64301,2410.9,2410.5,40.8]
[1725524726024,3.64301,2410.9,2410.4,1.16688]
[1725524726424,3.64301,2410.9,2410.5,0.41487]
[1725524726721,3.64301,2410.9,2410.5,41.21487]
[1725524726924,0.3582,2410.9,2410.5,40.8]
[1725524727124,0.41482,2410.8,2410.5,40.8]
[1725524727618,0.3582,2410.9,2410.6,3.62264]
[1725524730124,0.3582,2410.9,2410.7,0.41483]
[1725524730325,3.21401311,2411.1,2410.8,0.41482]
[1725524731022,3.21401311,2411.1,2410.9,0.3814]
[1725524731225,3.21401311,2411.1,2410.9,1.17049]
[1725524731525,3.21401311,2411.1,2410.9,0.7557]
[1725524732224,3.21401311,2411.1,2410.9,1.1705]
[1725524732429,3.62877311,2411.1,2410.9,0.7557]
[1725524733630,3.21401311,2411.1,2410.9,0.7557]
[1725524734332,3.62877311,2411.1,2410.9,0.7557]
[1725524735538,3.21401311,2411.1,2410.9,0.7557]
[1725524736227,3.21401311,2411.1,2410.9,1.17049]
[1725524736428,3.21401311,2411.1,2410.9,0.7557]
[1725524736729,3.21401311,2411.1,2410.9,1.17049]
[1725524736925,3.21401311,2411.1,2410.9,0.7557]
[1725524737131,3.21401311,2411.1,2410.9,1.17049]
[1725524737330,3.2078,2411.6,2411.0,4.148]
[1725524737532,3.62248,2411.6,2411.2,0.41474]
[1725524737729,3.62248,2411.6,2411.3,0.77313]
[1725524738027,0.41474,2411.3,2410.9,3.5892]
[1725524738241,0.41474,2411.3,2411.0,3.62258]
[1725524738433,0.41474,2411.3,2411.0,0.41478]
[1725524738737,0.41476,2411.2,2410.9,0.74601311]
[1725524739034,0.41474,2411.3,2410.9,1.16080311]
[1725524739734,2.87,2411.2,2410.9,1.16080311]
[1725524741239,2.87621311,2411.4,2410.9,1.16080311]
[1725524741541,0.41473,2411.3,2410.9,1.16080311]
[1725524742843,3.29093311,2411.4,2410.9,1.16080311]
[1725524745244,3.29094311,2411.4,2410.9,4.36860311]
[1725524746345,3.29094311,2411.4,2411.0,0.41478]
[1725524748052,2.87621311,2411.4,2411.1,0.41476]
[1725524748250,0.00621311,2411.4,2411.2,0.41474]
[1725524748949,0.00621311,2411.4,2411.3,0.41473]
[1725524750254,0.00621311,2411.4,2411.2,0.41473]
[1725524752547,0.00621311,2411.4,2411.3,0.41473]
[1725524754149,0.00621311,2411.4,2411.3,1.45156]
[1725524754350,0.00621311,2411.4,2411.3,2.16666]
[1725524754559,4.111,2411.6,2411.5,1.45145]
[1725524754853,0.41461,2412.0,2411.8,0.41463]
[1725524755948,1.52401311,2412.1,2411.8,0.41463]
[1725524756154,0.36391311,2412.1,2412.0,0.41461]
[1725524757258,0.36391311,2412.1,2411.9,1.16891]
[1725524757458,4.1456,2412.0,2411.8,3.2078]
[1725524757649,4.1456,2412.0,2410.9,44.01401311]
[1725524757650,1.03666,2411.7,2410.9,44.01401311]
[1725524757851,2.87,2411.4,2411.1,0.41475]
[1725524759257,3.28472,2411.4,2411.0,0.41477]
[1725524759456,2.87,2411.4,2410.9,3.21401311]
[1725524759654,2.87,2411.4,2410.9,0.42100311]
[1725524759655,0.41475,2411.2,2410.9,0.42100311]
[1725524759960,0.371,2411.1,2410.9,0.42100311]
[1725524760650,0.371,2411.1,2410.9,3.62880311]
[1725524761154,0.78577,2411.1,2410.9,3.62880311]
[1725524761359,1.15257,2411.1,2410.9,3.21401311]
[1725524761958,1.15257,2411.1,2410.9,3.62881311]
[1725524763261,0.7378,2411.1,2410.9,3.62881311]
[1725524763461,1.15257,2411.1,2410.9,3.62881311]
[1725524763861,0.7378,2411.1,2410.9,3.62881311]
[1725524764061,1.15256,2411.1,2410.9,3.62881311]
[1725524764753,0.41478,2411.0,2410.9,3.21401311]
[1725524764954,1.15258,2411.1,2410.9,3.21401311]
[1725524765561,1.15258,2411.1,2410.9,0.00621311]
[1725524765763,1.15258,2411.1,2410.9,3.21401311]
[1725524766457,0.41478,2411.0,2410.9,0.00621311]
[1725524767872,0.7378,2411.1,2410.9,0.00621311]
[1725524767873,1.15257,2411.1,2410.9,0.00621311]
[1725524768560,1.15257,2411.1,2410.9,0.03601311]
[1725524769356,0.7378,2411.1,2410.9,0.03601311]
[1725524769555,1.15256,2411.1,2410.9,3.24381311]
[1725524770458,0.7378,2411.1,2410.9,3.24381311]
[1725524770666,3.28478,2411.0,2410.9,3.24381311]
[1725524773461,3.28478,2411.0,2410.9,0.03601311]
[1725524775573,7.43278,2411.0,2410.9,0.03601311]
[1725524778473,8.46974,2411.0,2410.9,0.03601311]
[1725524779763,7.43278,2411.0,2410.9,0.03601311]
[1725524783977,7.018,2411.0,2410.9,0.03601311]
[1725524784174,2.87,2411.0,2410.9,0.00621311]
[1725524785574,3.28478,2411.0,2410.9,0.00621311]
[1725524785766,7.43278,2411.0,2410.9,0.00621311]
[1725524786578,8.46974,2411.0,2410.9,0.00621311]
[1725524786878,0.41486,2410.6,2410.3,0.4149]
[1725524787179,4.44047,2410.5,2410.2,0.41491]
[1725524787774,4.0256,2410.5,2410.2,0.41491]
[1725524789188,4.44047,2410.5,2410.2,0.41491]
[1725524790177,4.44047,2410.5,2410.2,3.62271]
[1725524790780,2.87,2410.3,2410.2,3.62272]
[1725524791779,2.87621311,2410.6,2410.4,0.41488]
[1725524792287,2.87621311,2410.6,2410.5,0.3896]
[1725524792681,2.87621311,2410.6,2410.5,0.80447]
[1725524792878,2.87621311,2410.6,2410.5,0.3896]
[1725524793579,2.87621311,2410.6,2410.5,0.80447]
[1725524794775,3.29106311,2410.6,2410.5,0.3896]
[1725524795381,2.87621311,2410.6,2410.5,0.3896]
[1725524795685,2.87621311,2410.6,2410.5,0.80447]
[1725524796086,2.87621311,2410.6,2410.5,0.3896]
[1725524796282,0.00621311,2410.6,2410.5,8.16107]
[1725524796487,0.00621311,2410.6,2410.5,8.88227]
[1725524802588,0.00621311,2410.6,2410.5,4.73347]
[1725524805292,0.00621311,2410.6,2410.1,0.00621311]
[1725524805293,8.06214311,2410.6,2410.1,0.00621311]
[1725524805486,2.87,2410.3,2410.1,0.77674311]
[1725524805792,2.87,2410.3,2410.2,3.2078]
[1725524806590,2.87,2410.3,2410.1,3.56961311]
[1725524806784,2.87,2410.3,2410.1,0.00621311]
[1725524806785,0.41492,2410.2,2410.1,0.00621311]
[1725524808792,3.28491,2410.3,2410.1,0.00621311]
[1725524809795,2.87,2410.3,2410.1,0.00621311]
[1725524810590,3.2849,2410.3,2410.1,0.00621311]
[1725524810787,0.41492,2410.2,2410.1,0.00621311]
[1725524811495,2.87,2410.3,2410.1,0.00621311]
[1725524811897,3.2849,2410.3,2410.1,0.00621311]
[1725524812898,2.87,2410.3,2410.1,0.00621311]
[1725524813101,3.2849,2410.3,2410.1,0.00621311]
[1725524814988,2.87,2410.3,2410.1,0.00621311]
[1725524815999,3.2849,2410.3,2410.1,0.00621311]
[1725524817504,2.87,2410.3,2410.1,0.42114311]
[1725524817714,2.87,2410.3,2410.1,0.00621311]
[1725524818212,3.2849,2410.3,2410.1,0.00621311]
[1725524818599,2.87,2410.3,2410.1,0.00621311]
[1725524818904,3.2849,2410.3,2410.1,0.00621311]
[1725524819106,3.2849,2410.3,2410.1,0.42114311]
[1725524819303,3.2849,2410.3,2410.2,0.0298]
[1725524819999,2.87,2410.3,2410.2,0.0298]
[1725524820299,2.87,2410.3,2410.2,0.44472]
[1725524820700,1.15567,2410.5,2410.3,0.4149]
[1725524820701,4.02567,2410.5,2410.3,0.4149]
[1725524820901,4.02567,2410.5,2410.2,0.7489]
[1725524821100,3.6108,2410.5,2410.3,0.41489]
[1725524821297,2.87,2410.5,2410.4,0.41488]
[1725524821502,2.6108,2410.5,2410.4,0.41488]
[1725524823707,7.3188,2411.1,2410.4,7.3566]
[1725524823909,7.3188,2411.1,2410.4,3.2078]
[1725524823910,3.28481,2410.9,2410.4,3.2078]
[1725524824212,3.28481,2410.9,2410.6,0.41484]
[1725524824411,3.65811,2410.9,2410.6,0.41484]
[1725524824611,0.39,2410.8,2410.7,0.41483]
[1725524825315,0.38031311,2411.0,2410.9,0.4148]
[1725524825605,0.75581311,2411.0,2410.9,0.4148]
[1725524826705,0.75581311,2411.0,2410.8,1.1861]
[1725524827704,0.75581311,2411.0,2410.9,0.4148]
[1725524828516,1.17059311,2411.0,2410.8,1.1861]
[1725524828813,1.17059311,2411.0,2410.8,1.18611]
[1725524828814,1.17060311,2411.0,2410.8,1.18611]
[1725524829004,4.04060311,2411.0,2410.8,1.18611]
[1725524830804,4.04060311,2411.0,2410.9,0.4148]
[1725524831206,4.04060311,2411.0,2410.8,1.1861]
[1725524834606,4.04060311,2411.0,2410.9,0.4148]
[1725524835206,4.04060311,2411.0,2410.8,0.7713]
[1725524835411,4.04060311,2411.0,2410.8,1.1861]
[1725524837218,4.04060311,2411.0,2410.9,0.4148]
[1725524837917,2.37060311,2411.0,2410.9,0.4148]
[1725524840318,1.95581311,2411.0,2410.9,0.4148]
[1725524842720,2.37059311,2411.0,2410.9,0.4148]
[1725524843619,1.95581311,2411.0,2410.9,0.4148]
[1725524844718,2.37059311,2411.0,2410.8,0.7713]
[1725524844923,2.37059311,2411.0,2410.8,0.7961]
[1725524845315,1.95581311,2411.0,2410.8,0.7961]
[1725524845822,2.37059311,2411.0,2410.8,0.7961]
[1725524846029,1.95581311,2411.0,2410.8,0.7961]
[1725524846632,1.95581311,2411.0,2410.6,0.41485]
[1725524846633,0.41482,2410.8,2410.6,0.41485]
[1725524846919,0.77835,2410.7,2410.2,0.7417]
[1725524847226,1.2,2410.5,2410.4,3.62267]
[1725524847816,1.5605,2410.6,2410.5,0.41487]
[1725524848815,1.5574,2410.8,2410.7,0.41483]
[1725524849124,1.9179,2410.8,2410.7,3.62263]
[1725524849524,1.9179,2410.8,2410.7,0.41483]
[1725524849825,1.9179,2410.8,2410.7,3.62263]
[1725524850029,1.5635,2410.9,2410.8,0.41482]
[1725524850214,1.954,2410.9,2410.8,0.41482]
[1725524850723,1.5905,2410.9,2410.8,0.41482]
[1725524852827,2.0053,2410.9,2410.8,0.41482]
[1725524853027,1.5905,2410.9,2410.8,0.41482]
[1725524857127,2.00531,2410.9,2410.7,3.62262]
[1725524858933,2.00531,2410.9,2410.8,0.41482]
[1725524859135,1.5905,2410.9,2410.8,0.41482]
[1725524861028,1.2,2410.9,2410.8,1.45187]
[1725524862739,0.00621311,2411.0,2410.9,0.4148]
[1725524862936,1.20621311,2411.0,2410.9,0.8094]
[1725524863930,1.20621311,2411.0,2410.7,3.2078]
[1725524864241,1.5571,2410.9,2410.8,0.4148]
[1725524864431,1.9145,2410.9,2410.8,0.4148]
[1725524865131,2.32931,2410.9,2410.8,0.4148]
[1725524865434,2.32931,2410.9,2410.7,3.62262]
[1725524865837,2.32931,2410.9,2410.8,0.41482]
[1725524866138,2.32931,2410.9,2410.7,3.62262]
[1725524867536,2.32931,2410.9,2410.8,0.0298]
[1725524868130,6.47731,2410.9,2410.8,0.0298]
[1725524868341,12.0625,2410.9,2410.2,0.3934]
[1725524868642,12.0625,2410.9,2410.2,0.80832]
[1725524868643,1.2,2410.3,2410.2,0.80832]
[1725524870945,0.41482,2410.8,2410.2,4.5422]
[1725524871131,1.61483,2410.7,2410.5,0.41486]
[1725524871337,1.61483,2410.7,2410.6,0.3861]
[1725524872842,1.2,2410.7,2410.6,0.3861]
[1725524873035,1.2,2410.7,2410.6,0.80095]
[1725524875940,1.61483,2410.7,2410.5,0.41486]
[1725524876136,1.2,2410.6,2410.5,0.41486]
[1725524876330,1.2,2410.6,2410.4,3.2078]
[1725524876541,1.9742,2410.5,2410.4,0.41487]
[1725524877047,1.9742,2410.5,2410.4,3.62267]
[1725524877245,1.9742,2410.5,2410.4,0.41487]
[1725524877438,1.9742,2410.5,2410.4,3.62267]
[1725524878242,1.2,2410.6,2410.5,0.41486]
[1725524879043,1.9392,2410.9,2410.8,0.41482]
[1725524879546,2.354,2410.9,2410.7,0.41482]
[1725524879847,1.9392,2410.9,2410.8,0.78422]
[1725524880046,2.354,2410.9,2410.8,0.3694]
[1725524880442,1.9392,2410.9,2410.8,0.3694]
[1725524881246,1.9392,2410.9,2410.8,0.78422]
[1725524882742,2.3219,2410.9,2410.8,0.78422]
[1725524883947,2.3219,2410.9,2410.8,0.3694]
[1725524885145,0.3827,2410.9,2410.8,0.78422]
[1725524886550,1.5827,2410.9,2410.8,0.78422]
[1725524887243,0.41482,2410.8,2410.6,0.41484]
[1725524887449,1.61483,2410.7,2410.5,0.41486]
[1725524887649,1.2,2410.6,2410.4,0.79907]
[1725524887841,1.2,2410.6,2410.4,0.41487]
[1725524887842,1.98785,2410.6,2410.4,0.41487]
[1725524888041,1.573,2410.6,2410.4,0.41487]
[1725524888855,1.98785,2410.6,2410.4,0.41487]
[1725524889046,0.41488,2410.5,2410.2,0.3842]
[1725524889250,1.9281,2410.4,2410.2,0.79911]
[1725524889747,0.3915,2410.3,2410.2,0.41491]
[1725524891147,0.3915,2410.3,2410.2,3.62271]
[1725524895159,0.3915,2410.3,2410.2,0.41491]
[1725524896862,0.80641,2410.3,2410.1,0.80334311]
[1725524897063,0.41492,2410.2,2410.1,0.38841311]
[1725524897368,0.3915,2410.3,2410.1,0.38841311]
[1725524897557,1.2,2410.2,2410.1,0.80335311]
[1725524900957,1.5915,2410.3,2410.2,0.41492]
[1725524901155,1.2,2410.3,2410.2,0.41492]
[1725524901660,1.2,2410.3,2410.2,0.79912]
[1725524903257,1.569,2410.3,2410.2,0.79912]
[1725524903462,1.569,2410.3,2410.2,0.41492]
[1725524904570,0.41492,2410.2,2410.1,0.00621311]
[1725524904869,1.61492,2410.2,2410.1,0.00621311]
[1725524905066,1.2,2410.2,2410.1,0.42115311]
[1725524906266,1.569,2410.3,2410.2,0.41492]
[1725524906471,0.369,2410.3,2410.2,0.41492]
[1725524906668,0.3751,2410.7,2410.2,8.78699]
[1725524906968,1.98993,2410.7,2410.5,0.41485]
[1725524907269,1.98993,2410.7,2410.6,0.393]
[1725524907966,0.41485,2410.6,2410.4,0.41487]
[1725524908161,1.2,2410.6,2410.5,0.41487]
[1725524908365,1.2,2410.6,2410.4,0.41487]
[1725524910966,1.2,2410.6,2410.5,0.41487]
[1725524911167,0.41487,2410.5,2410.1,0.00621311]
[1725524911469,0.41487,2410.5,2410.2,3.6227]
[1725524911470,1.2,2410.4,2410.2,3.6227]
[1725524911668,1.2,2410.4,2410.2,3.2078]
[1725524911873,1.2,2410.4,2410.2,3.62271]
[1725524912578,1.2,2410.4,2410.2,0.41491]
[1725524912880,1.2,2410.4,2410.2,3.62271]
[1725524913077,1.5903,2410.5,2410.3,0.4149]
[1725524913579,1.2,2410.5,2410.4,0.3795]
[1725524913769,1.61487,2410.5,2410.4,0.3795]
[1725524914779,1.2,2410.5,2410.4,0.3795]
[1725524915377,1.61487,2410.5,2410.4,0.3795]
[1725524915579,1.2,2410.5,2410.4,0.79438]
[1725524916879,1.61487,2410.5,2410.4,0.79438]
[1725524917275,1.2,2410.5,2410.4,0.79438]
[1725524918480,1.61487,2410.5,2410.4,0.79438]
[1725524918784,1.2,2410.5,2410.4,0.79438]
[1725524919177,1.2,2410.5,2410.4,0.3795]
[1725524919587,1.2,2410.5,2410.4,0.79438]
[1725524920876,1.2,2410.5,2410.4,1.16248]
[1725524922684,1.5585,2410.5,2410.4,1.16248]
[1725524925083,1.14955,2410.7,2410.6,0.41485]
[1725524925084,1.5751,2410.7,2410.6,0.41485]
[1725524925681,1.2,2410.7,2410.6,0.41485]
[1725524925988,0.3761,2410.8,2410.7,0.41483]
[1725524926681,0.3761,2410.8,2410.7,0.80503]
[1725524932889,0.3656,2410.9,2410.8,0.41482]
[1725524933088,0.00621311,2411.0,2410.9,0.4148]
[1725524933589,1.20621311,2411.0,2410.9,0.4148]
[1725524933790,0.00621311,2411.0,2410.9,0.4148]
[1725524934094,0.00621311,2411.0,2410.9,3.6226]
[1725524934292,0.00621311,2411.0,2410.9,0.4148]
[1725524941384,0.00621311,2411.0,2410.1,0.00621311]